[Event "*** Titled Tuesday Blitz"]
[Site "Chess.com"]
[Date "2019.06.04"]
[Round "5"]
[White "KRASAVCHIK2002"]
[Black "Jahonas"]
[Result "1-0"]
[WhiteElo "2304"]
[BlackElo "2329"]
[TimeControl "180+2"]
[EndTime "14:09:17 PDT"]
[Termination "KRASAVCHIK2002 won by resignation"]

1. e4 {[%clk 0:03:01.9]} 1... c6 {[%clk 0:03:00.8]} 2. d4 {[%clk 0:03:02.2]}
2... d5 {[%clk 0:03:02.1]} 3. e5 {[%clk 0:03:02.9]} 3... Bf5 {[%clk 0:03:02.8]}
4. Nf3 {[%clk 0:03:04.3]} 4... e6 {[%clk 0:03:03.8]} 5. Be2 {[%clk 0:03:05.7]}
5... Nd7 {[%clk 0:03:05]} 6. O-O {[%clk 0:03:07.1]} 6... a6 {[%clk 0:03:06.4]}
7. c3 {[%clk 0:03:07.5]} 7... Ne7 {[%clk 0:03:07.4]} 8. Nbd2 {[%clk 0:03:08.6]}
8... Bg6 {[%clk 0:03:08.5]} 9. b4 {[%clk 0:03:08.3]} 9... Nf5 {[%clk 0:03:09.2]}
10. a4 {[%clk 0:03:09.1]} 10... a5 {[%clk 0:02:52]} 11. b5 {[%clk 0:03:00.6]}
11... c5 {[%clk 0:02:49.5]} 12. Ba3 {[%clk 0:02:44.9]} 12... c4 {[%clk
0:02:37.4]} 13. Bc1 {[%clk 0:02:29.2]} 13... h5 {[%clk 0:02:28.6]} 14. Re1
{[%clk 0:02:26.8]} 14... b6 {[%clk 0:02:24.4]} 15. Nf1 {[%clk 0:02:27.9]} 15...
h4 {[%clk 0:02:23.5]} 16. Ne3 {[%clk 0:02:29.1]} 16... Rc8 {[%clk 0:02:15]} 17.
Nxf5 {[%clk 0:02:29.7]} 17... Bxf5 {[%clk 0:02:14.9]} 18. Nd2 {[%clk 0:02:20.8]}
18... Be7 {[%clk 0:02:12.9]} 19. Nf1 {[%clk 0:02:21]} 19... Nf8 {[%clk
0:02:11.7]} 20. Ne3 {[%clk 0:02:22.1]} 20... g6 {[%clk 0:02:09.2]} 21. Bg4
{[%clk 0:02:16]} 21... Kd7 {[%clk 0:02:03.8]} 22. Ba3 {[%clk 0:02:07.5]} 22...
Bxa3 {[%clk 0:02:01.5]} 23. Rxa3 {[%clk 0:02:09.2]} 23... Qg5 {[%clk 0:01:58.7]}
24. Qf3 {[%clk 0:02:01.8]} 24... Ke7 {[%clk 0:01:48.5]} 25. Ra2 {[%clk
0:01:39.9]} 25... Nd7 {[%clk 0:01:41.4]} 26. Bh3 {[%clk 0:01:25.2]} 26... Be4
{[%clk 0:01:25.7]} 27. Qg4 {[%clk 0:01:23.6]} 27... Qxg4 {[%clk 0:01:25.2]} 28.
Nxg4 {[%clk 0:01:25.5]} 28... Bf5 {[%clk 0:01:21.7]} 29. f3 {[%clk 0:01:21.6]}
29... Rcg8 {[%clk 0:01:21]} 30. Nf2 {[%clk 0:01:22]} 30... Nf8 {[%clk
0:01:18.1]} 31. Bg4 {[%clk 0:01:14.7]} 31... g5 {[%clk 0:01:08.8]} 32. Rae2
{[%clk 0:01:13.5]} 32... Bg6 {[%clk 0:00:43]} 33. Nh3 {[%clk 0:01:08.2]} 33...
Bd3 {[%clk 0:00:42.3]} 34. Re3 {[%clk 0:01:09.5]} 34... Ng6 {[%clk 0:00:35.4]}
35. Nf2 {[%clk 0:01:04.5]} 35... Nf4 {[%clk 0:00:35.4]} 36. g3 {[%clk 0:00:55]}
36... hxg3 {[%clk 0:00:36.4]} 37. hxg3 {[%clk 0:00:56.9]} 37... Ng6 {[%clk
0:00:30.7]} 38. Nxd3 {[%clk 0:00:54.7]} 38... cxd3 {[%clk 0:00:31.9]} 39. Rxd3
{[%clk 0:00:56.6]} 39... Rc8 {[%clk 0:00:32.8]} 40. Ra1 {[%clk 0:00:50.6]} 40...
Rc4 {[%clk 0:00:32.6]} 41. Ra3 {[%clk 0:00:51.4]} 41... Rhc8 {[%clk 0:00:32.3]}
42. Kf2 {[%clk 0:00:52.2]} 42... Kf8 {[%clk 0:00:31.5]} 43. Bh3 {[%clk
0:00:52.8]} 43... Kg7 {[%clk 0:00:32.2]} 44. Bf1 {[%clk 0:00:53.5]} 44... R4c7
{[%clk 0:00:33]} 45. Ke3 {[%clk 0:00:50.8]} 45... f6 {[%clk 0:00:34.2]} 46. f4
{[%clk 0:00:50.8]} 46... fxe5 {[%clk 0:00:32.6]} 47. dxe5 {[%clk 0:00:48.3]}
47... Rf8 {[%clk 0:00:28.7]} 48. Rd4 {[%clk 0:00:47.2]} 48... Rcf7 {[%clk
0:00:26.5]} 49. Ra1 {[%clk 0:00:29.3]} 49... gxf4+ {[%clk 0:00:26.1]} 50. gxf4
{[%clk 0:00:31.2]} 50... Rxf4 {[%clk 0:00:26.8]} 51. Be2 {[%clk 0:00:29]} 51...
R4f5 {[%clk 0:00:18.6]} 52. Rg1 {[%clk 0:00:29.2]} 52... Rxe5+ {[%clk 0:00:19]}
53. Kd3 {[%clk 0:00:25]} 53... Rff5 {[%clk 0:00:17.3]} 54. Rdg4 {[%clk
0:00:23.6]} 54... Rf6 {[%clk 0:00:08.5]} 55. R4g3 {[%clk 0:00:22.7]} 55... Kh6
{[%clk 0:00:06.8]} 56. Rh1+ {[%clk 0:00:22]} 56... Kg7 {[%clk 0:00:08.1]} 57.
Rhg1 {[%clk 0:00:23.5]} 57... Kf7 {[%clk 0:00:09.2]} 58. Bd1 {[%clk 0:00:23.1]}
58... Nf4+ {[%clk 0:00:10.1]} 59. Kc2 {[%clk 0:00:24.5]} 59... Ke7 {[%clk
0:00:11.3]} 60. Rg7+ {[%clk 0:00:24.8]} 60... Rf7 {[%clk 0:00:12.6]} 61. Rxf7+
{[%clk 0:00:23.9]} 61... Kxf7 {[%clk 0:00:13.6]} 62. Rf1 {[%clk 0:00:23.8]}
62... Rf5 {[%clk 0:00:14.1]} 63. Kd2 {[%clk 0:00:16.4]} 63... Kf6 {[%clk
0:00:14.6]} 64. Bc2 {[%clk 0:00:14.3]} 64... Ke5 {[%clk 0:00:13.4]} 65. Bxf5
{[%clk 0:00:14.6]} 65... Kxf5 {[%clk 0:00:14.7]} 66. Rh1 {[%clk 0:00:10.9]}
66... e5 {[%clk 0:00:15.9]} 67. Rh6 {[%clk 0:00:12]} 67... Ne6 {[%clk
0:00:15.4]} 68. Rh5+ {[%clk 0:00:10.7]} 68... Ke4 {[%clk 0:00:16.4]} 69. Rh4+
{[%clk 0:00:11.3]} 69... Nf4 {[%clk 0:00:17.5]} 70. Rh6 {[%clk 0:00:12.1]} 70...
d4 {[%clk 0:00:17.3]} 71. cxd4 {[%clk 0:00:13]} 71... Kxd4 {[%clk 0:00:17.7]}
72. Rxb6 {[%clk 0:00:14]} 72... e4 {[%clk 0:00:19.1]} 73. Rb8 {[%clk 0:00:14.7]}
73... e3+ {[%clk 0:00:19.9]} 74. Ke1 {[%clk 0:00:16]} 74... Nd3+ {[%clk
0:00:20.3]} 75. Ke2 {[%clk 0:00:17]} 75... Nf4+ {[%clk 0:00:21.5]} 76. Kf3
{[%clk 0:00:18.1]} 76... e2 {[%clk 0:00:21.6]} 77. Re8 {[%clk 0:00:18.2]} 77...
Kd3 {[%clk 0:00:22.1]} 78. Kxf4 {[%clk 0:00:18.3]} 1-0

[Event "*** Titled Tuesday Blitz"]
[Site "Chess.com"]
[Date "2019.06.04"]
[Round "5"]
[White "DivyaDeshmukh23"]
[Black "RaphCamora"]
[Result "1-0"]
[WhiteElo "2394"]
[BlackElo "2439"]
[TimeControl "180+2"]
[EndTime "14:09:35 PDT"]
[Termination "DivyaDeshmukh23 won on time"]

1. e4 {[%clk 0:03:01.9]} 1... c5 {[%clk 0:03:00.3]} 2. Nf3 {[%clk 0:03:00.3]}
2... Nc6 {[%clk 0:03:01]} 3. d4 {[%clk 0:03:01]} 3... cxd4 {[%clk 0:03:01.1]} 4.
Nxd4 {[%clk 0:03:02.9]} 4... Nf6 {[%clk 0:03:02.4]} 5. Nc3 {[%clk 0:03:03.2]}
5... e5 {[%clk 0:03:03.6]} 6. Ndb5 {[%clk 0:03:03.9]} 6... d6 {[%clk 0:03:04.6]}
7. Bg5 {[%clk 0:03:05.4]} 7... a6 {[%clk 0:03:03.5]} 8. Na3 {[%clk 0:03:06.5]}
8... b5 {[%clk 0:03:04.7]} 9. Nd5 {[%clk 0:03:07.8]} 9... Be7 {[%clk 0:03:03.7]}
10. Bxf6 {[%clk 0:03:09]} 10... Bxf6 {[%clk 0:03:03.7]} 11. c3 {[%clk
0:03:10.5]} 11... Bg5 {[%clk 0:03:03.7]} 12. Nc2 {[%clk 0:03:11.5]} 12... Rb8
{[%clk 0:03:04.5]} 13. Nce3 {[%clk 0:03:10.5]} 13... Bxe3 {[%clk 0:02:47.1]} 14.
Nxe3 {[%clk 0:03:10.2]} 14... O-O {[%clk 0:02:48.7]} 15. Bd3 {[%clk 0:03:10.6]}
15... Be6 {[%clk 0:02:48.3]} 16. O-O {[%clk 0:03:11.2]} 16... a5 {[%clk
0:02:47.5]} 17. Qe2 {[%clk 0:03:09.8]} 17... b4 {[%clk 0:02:41.8]} 18. Nd5
{[%clk 0:03:00.9]} 18... Bxd5 {[%clk 0:02:36.6]} 19. exd5 {[%clk 0:02:49.3]}
19... Ne7 {[%clk 0:02:36.4]} 20. c4 {[%clk 0:02:48]} 20... f5 {[%clk 0:02:33.2]}
21. a3 {[%clk 0:02:39.3]} 21... Ng6 {[%clk 0:02:17.5]} 22. g3 {[%clk 0:02:32.1]}
22... e4 {[%clk 0:02:18.5]} 23. Bc2 {[%clk 0:02:32.5]} 23... Ne5 {[%clk
0:02:20.1]} 24. axb4 {[%clk 0:02:32.1]} 24... Rxb4 {[%clk 0:02:19.2]} 25. b3
{[%clk 0:02:31.8]} 25... Nf3+ {[%clk 0:01:55.6]} 26. Kg2 {[%clk 0:02:28.7]}
26... Qg5 {[%clk 0:01:56.1]} 27. Rh1 {[%clk 0:02:24.7]} 27... Qh5 {[%clk
0:01:51.4]} 28. Rxa5 {[%clk 0:02:15.1]} 28... Qg4 {[%clk 0:00:34.7]} 29. h3
{[%clk 0:02:07]} 29... Qg6 {[%clk 0:00:35.6]} 30. Ra7 {[%clk 0:02:04.8]} 30...
Rfb8 {[%clk 0:00:30.2]} 31. Qe3 {[%clk 0:02:01.7]} 31... R4b7 {[%clk 0:00:27.1]}
32. Rxb7 {[%clk 0:02:01.5]} 32... Rxb7 {[%clk 0:00:29]} 33. Ra1 {[%clk
0:02:02.8]} 33... h5 {[%clk 0:00:29.7]} 34. Qf4 {[%clk 0:01:57.8]} 34... Nd4
{[%clk 0:00:24.9]} 35. Bd1 {[%clk 0:01:55.4]} 35... Kh7 {[%clk 0:00:17.9]} 36.
Qh4 {[%clk 0:01:51.7]} 36... Qh6 {[%clk 0:00:16.6]} 37. Rb1 {[%clk 0:01:39.4]}
37... g5 {[%clk 0:00:15.8]} 38. Qxh5 {[%clk 0:01:40.1]} 38... Qxh5 {[%clk
0:00:17.7]} 39. Bxh5 {[%clk 0:01:41.6]} 39... Rxb3 {[%clk 0:00:17.1]} 40. Rxb3
{[%clk 0:01:42.1]} 40... Nxb3 {[%clk 0:00:19]} 41. Bf7 {[%clk 0:01:39.8]} 41...
Kg7 {[%clk 0:00:19.7]} 42. Be6 {[%clk 0:01:40]} 42... Kf6 {[%clk 0:00:21.2]} 43.
h4 {[%clk 0:01:40.1]} 43... g4 {[%clk 0:00:19.6]} 44. h5 {[%clk 0:01:39]} 44...
Nd2 {[%clk 0:00:20.3]} 45. h6 {[%clk 0:01:37.4]} 45... Kg6 {[%clk 0:00:21.5]}
46. Bxf5+ {[%clk 0:01:35.3]} 46... Kxh6 {[%clk 0:00:22.7]} 47. Bxg4 {[%clk
0:01:36.2]} 47... Nxc4 {[%clk 0:00:23.8]} 48. Bf5 {[%clk 0:01:35.9]} 48... e3
{[%clk 0:00:25.1]} 49. Kf3 {[%clk 0:01:35]} 49... exf2 {[%clk 0:00:24]} 50. Kxf2
{[%clk 0:01:36.9]} 50... Kg5 {[%clk 0:00:25.1]} 51. Bd3 {[%clk 0:01:35]} 51...
Ne5 {[%clk 0:00:25.7]} 52. Be4 {[%clk 0:01:34.9]} 52... Kg4 {[%clk 0:00:25.9]}
53. Bc2 {[%clk 0:01:31]} 53... Kg5 {[%clk 0:00:26.9]} 54. Bd1 {[%clk 0:01:28.1]}
54... Kf5 {[%clk 0:00:26.9]} 55. Ke3 {[%clk 0:01:28.9]} 55... Nd7 {[%clk
0:00:23.1]} 56. Kd4 {[%clk 0:01:27.2]} 56... Nf6 {[%clk 0:00:23.1]} 57. Kc4
{[%clk 0:01:17.1]} 57... Ke5 {[%clk 0:00:22.8]} 58. Bf3 {[%clk 0:01:18.5]} 58...
Nh7 {[%clk 0:00:23.1]} 59. Kb5 {[%clk 0:01:17.4]} 59... Ng5 {[%clk 0:00:25]} 60.
Bg2 {[%clk 0:01:18]} 60... Nf7 {[%clk 0:00:21.5]} 61. Kc6 {[%clk 0:01:18.8]}
61... Ng5 {[%clk 0:00:22.7]} 62. Kd7 {[%clk 0:01:19.9]} 62... Nh7 {[%clk
0:00:22.7]} 63. Bf3 {[%clk 0:01:10.3]} 63... Ng5 {[%clk 0:00:13.3]} 64. Bh1
{[%clk 0:01:10.3]} 64... Nh7 {[%clk 0:00:14.1]} 65. Bg2 {[%clk 0:01:05.2]} 65...
Ng5 {[%clk 0:00:14.1]} 66. Ke7 {[%clk 0:01:05.5]} 66... Nh7 {[%clk 0:00:15]} 67.
g4 {[%clk 0:01:02.5]} 67... Ng5 {[%clk 0:00:15.8]} 68. Bh1 {[%clk 0:01:02]}
68... Nh3 {[%clk 0:00:15.2]} 69. Kf7 {[%clk 0:00:59.6]} 69... Ng5+ {[%clk
0:00:15.8]} 70. Kg6 {[%clk 0:00:59.1]} 70... Nh3 {[%clk 0:00:14.4]} 71. Bf3
{[%clk 0:00:56.2]} 71... Kf4 {[%clk 0:00:06.1]} 72. Bd1 {[%clk 0:00:55.5]} 72...
Ke5 {[%clk 0:00:04.5]} 73. Bb3 {[%clk 0:00:51.4]} 73... Nf4+ {[%clk 0:00:05.1]}
74. Kh6 {[%clk 0:00:51.2]} 74... Nd3 {[%clk 0:00:03.3]} 75. g5 {[%clk 0:00:51]}
75... Nc5 {[%clk 0:00:05.2]} 76. Ba2 {[%clk 0:00:49.6]} 76... Nd7 {[%clk
0:00:04.8]} 77. g6 {[%clk 0:00:50.4]} 77... Nf6 {[%clk 0:00:04.2]} 78. g7 {[%clk
0:00:49.9]} 78... Ng8+ {[%clk 0:00:03.1]} 79. Kh7 {[%clk 0:00:50]} 79... Nf6+
{[%clk 0:00:03.6]} 80. Kh8 {[%clk 0:00:50.9]} 1-0

[Event "*** Titled Tuesday Blitz"]
[Site "Chess.com"]
[Date "2019.06.04"]
[Round "5"]
[White "DiogenesSinopeus"]
[Black "dopolian"]
[Result "1/2-1/2"]
[WhiteElo "2429"]
[BlackElo "2256"]
[TimeControl "180+2"]
[EndTime "14:09:37 PDT"]
[Termination "Game drawn by stalemate"]

1. d4 {[%clk 0:03:01.9]} 1... Nf6 {[%clk 0:03:00.5]} 2. c4 {[%clk 0:03:03.2]}
2... c5 {[%clk 0:03:01.4]} 3. d5 {[%clk 0:03:04.1]} 3... e6 {[%clk 0:03:02.9]}
4. Nc3 {[%clk 0:03:04.6]} 4... exd5 {[%clk 0:03:04.8]} 5. cxd5 {[%clk
0:03:06.5]} 5... d6 {[%clk 0:03:06.3]} 6. g3 {[%clk 0:03:05.3]} 6... g6 {[%clk
0:03:07.7]} 7. Bg2 {[%clk 0:03:06.9]} 7... Bg7 {[%clk 0:03:09.4]} 8. Nf3 {[%clk
0:03:08.6]} 8... O-O {[%clk 0:03:11.1]} 9. O-O {[%clk 0:03:10.3]} 9... a6 {[%clk
0:03:12.7]} 10. a4 {[%clk 0:03:11.1]} 10... Re8 {[%clk 0:03:14]} 11. Bf4 {[%clk
0:03:12.7]} 11... Ne4 {[%clk 0:03:15.2]} 12. Nxe4 {[%clk 0:03:14.3]} 12... Rxe4
{[%clk 0:03:16.9]} 13. Nd2 {[%clk 0:03:15.8]} 13... Rxf4 {[%clk 0:03:18.5]} 14.
gxf4 {[%clk 0:03:17.7]} 14... Bxb2 {[%clk 0:03:19.9]} 15. Rb1 {[%clk 0:03:16.1]}
15... Bg7 {[%clk 0:03:21.4]} 16. Nc4 {[%clk 0:03:16.2]} 16... b5 {[%clk
0:02:13.2]} 17. axb5 {[%clk 0:03:15.6]} 17... axb5 {[%clk 0:02:15.1]} 18. Rxb5
{[%clk 0:03:17.3]} 18... Ba6 {[%clk 0:02:16.3]} 19. Ra5 {[%clk 0:03:18.8]} 19...
Nd7 {[%clk 0:02:13.5]} 20. Qa4 {[%clk 0:03:13.7]} 20... Bb7 {[%clk 0:02:05.5]}
21. Rxa8 {[%clk 0:03:03.9]} 21... Bxa8 {[%clk 0:02:07.4]} 22. Nxd6 {[%clk
0:02:54.6]} 22... Nf6 {[%clk 0:01:50.9]} 23. e4 {[%clk 0:02:50.2]} 23... Bxd5
{[%clk 0:01:39.6]} 24. exd5 {[%clk 0:02:40.2]} 24... Qxd6 {[%clk 0:01:40.6]} 25.
Qa8+ {[%clk 0:02:37.1]} 25... Bf8 {[%clk 0:01:40.9]} 26. Qc6 {[%clk 0:02:11.9]}
26... Qxf4 {[%clk 0:01:32.1]} 27. h3 {[%clk 0:02:04]} 27... Bd6 {[%clk
0:01:27.7]} 28. Ra1 {[%clk 0:01:55.9]} 28... Kg7 {[%clk 0:01:18.5]} 29. Qa4
{[%clk 0:01:46.5]} 29... Qh2+ {[%clk 0:01:11.4]} 30. Kf1 {[%clk 0:01:47.7]}
30... Qe5 {[%clk 0:01:12.6]} 31. Re1 {[%clk 0:01:46.2]} 31... Qc3 {[%clk
0:01:09.5]} 32. Qa6 {[%clk 0:01:46]} 32... Be5 {[%clk 0:00:45.7]} 33. d6 {[%clk
0:01:46.8]} 33... Qd4 {[%clk 0:00:43.1]} 34. Qe2 {[%clk 0:00:50.8]} 34... Bxd6
{[%clk 0:00:42.1]} 35. Rd1 {[%clk 0:00:52.3]} 35... Qe5 {[%clk 0:00:35.8]} 36.
Qd3 {[%clk 0:00:53.5]} 36... Bc7 {[%clk 0:00:32.3]} 37. Rc1 {[%clk 0:00:53.3]}
37... h5 {[%clk 0:00:24.5]} 38. Qb5 {[%clk 0:00:54.2]} 38... Bd6 {[%clk
0:00:25.3]} 39. Qc6 {[%clk 0:00:54.7]} 39... Qd4 {[%clk 0:00:23.4]} 40. Bf3
{[%clk 0:00:47.9]} 40... Qf4 {[%clk 0:00:19.2]} 41. Rd1 {[%clk 0:00:45.8]} 41...
Be5 {[%clk 0:00:11]} 42. Bg2 {[%clk 0:00:47.1]} 42... Bd4 {[%clk 0:00:10.9]} 43.
Qf3 {[%clk 0:00:46.7]} 43... Qxf3 {[%clk 0:00:11.3]} 44. Bxf3 {[%clk 0:00:48.6]}
44... Nd7 {[%clk 0:00:12.4]} 45. Bd5 {[%clk 0:00:48.6]} 45... Ne5 {[%clk
0:00:13.6]} 46. Rb1 {[%clk 0:00:48.2]} 46... c4 {[%clk 0:00:09.2]} 47. f4 {[%clk
0:00:49]} 47... Nd3 {[%clk 0:00:06.1]} 48. Rb7 {[%clk 0:00:45.4]} 48... c3
{[%clk 0:00:05.8]} 49. Bxf7 {[%clk 0:00:40.8]} 49... Nc5 {[%clk 0:00:05.3]} 50.
Rc7 {[%clk 0:00:39.7]} 50... Kf6 {[%clk 0:00:04]} 51. Rxc5 {[%clk 0:00:22]}
51... Bxc5 {[%clk 0:00:04.9]} 52. Bb3 {[%clk 0:00:23.9]} 52... Kf5 {[%clk
0:00:05.3]} 53. Bc2+ {[%clk 0:00:24.3]} 53... Kf6 {[%clk 0:00:06.5]} 54. Kg2
{[%clk 0:00:24.5]} 54... Be3 {[%clk 0:00:06.8]} 55. Kf3 {[%clk 0:00:25.5]} 55...
Bd2 {[%clk 0:00:08.3]} 56. Bd3 {[%clk 0:00:25.3]} 56... g5 {[%clk 0:00:05.1]}
57. f5 {[%clk 0:00:22.5]} 57... Ke5 {[%clk 0:00:06.3]} 58. Bc2 {[%clk
0:00:23.1]} 58... Bf4 {[%clk 0:00:05.6]} 59. Bb1 {[%clk 0:00:22.7]} 59... Kd4
{[%clk 0:00:04.3]} 60. h4 {[%clk 0:00:22.6]} 60... Ke5 {[%clk 0:00:03.5]} 61.
hxg5 {[%clk 0:00:19.5]} 61... Bxg5 {[%clk 0:00:05.4]} 62. Bc2 {[%clk 0:00:20.3]}
62... h4 {[%clk 0:00:06.7]} 63. Kg4 {[%clk 0:00:21.5]} 63... Bf6 {[%clk
0:00:08.4]} 64. Kh3 {[%clk 0:00:16.5]} 64... Kf4 {[%clk 0:00:09.3]} 65. Bb3
{[%clk 0:00:16.5]} 65... Ke3 {[%clk 0:00:10]} 66. Kg4 {[%clk 0:00:16.6]} 66...
Kd2 {[%clk 0:00:11.2]} 67. Kh3 {[%clk 0:00:17.8]} 67... c2 {[%clk 0:00:12.4]}
68. Bxc2 {[%clk 0:00:19.2]} 68... Kxc2 {[%clk 0:00:14.3]} 69. Kh2 {[%clk
0:00:21.1]} 69... Kd3 {[%clk 0:00:15.6]} 70. Kh1 {[%clk 0:00:23]} 70... Ke3
{[%clk 0:00:13.5]} 71. Kh2 {[%clk 0:00:24.9]} 71... Kf3 {[%clk 0:00:13.3]} 72.
Kh3 {[%clk 0:00:26.8]} 72... Kf2 {[%clk 0:00:10.9]} 73. Kh2 {[%clk 0:00:26.7]}
73... Kf3 {[%clk 0:00:11.8]} 74. Kh3 {[%clk 0:00:28.6]} 74... Bg5 {[%clk
0:00:11.7]} 75. f6 {[%clk 0:00:29.4]} 75... Kf2 {[%clk 0:00:08.2]} 76. f7 {[%clk
0:00:31.3]} 76... Be7 {[%clk 0:00:09.2]} 77. Kh2 {[%clk 0:00:30]} 77... Kf3
{[%clk 0:00:09.3]} 78. Kh3 {[%clk 0:00:31.9]} 78... Kf4 {[%clk 0:00:10.6]} 79.
f8=Q+ {[%clk 0:00:32.1]} 79... Bxf8 {[%clk 0:00:11.6]} 80. Kh2 {[%clk 0:00:34]}
80... Kg4 {[%clk 0:00:10.8]} 81. Kh1 {[%clk 0:00:35.3]} 81... Kh3 {[%clk
0:00:11.6]} 82. Kg1 {[%clk 0:00:36.4]} 82... Bd6 {[%clk 0:00:12.9]} 83. Kh1
{[%clk 0:00:38.3]} 83... Bc5 {[%clk 0:00:14.8]} 1/2-1/2

[Event "*** Titled Tuesday Blitz"]
[Site "Chess.com"]
[Date "2019.06.04"]
[Round "5"]
[White "mitrabhaa"]
[Black "Astaneh"]
[Result "0-1"]
[WhiteElo "2695"]
[BlackElo "2581"]
[TimeControl "180+2"]
[EndTime "14:10:17 PDT"]
[Termination "Astaneh won by resignation"]

1. Nf3 {[%clk 0:02:58.7]} 1... Nf6 {[%clk 0:03:00.9]} 2. d4 {[%clk 0:02:59.7]}
2... b6 {[%clk 0:03:01.7]} 3. Bf4 {[%clk 0:03:00.3]} 3... Bb7 {[%clk 0:03:03]}
4. e3 {[%clk 0:03:01.9]} 4... e6 {[%clk 0:03:03.2]} 5. Nbd2 {[%clk 0:03:01.9]}
5... Bd6 {[%clk 0:03:04.7]} 6. Bg3 {[%clk 0:03:02.3]} 6... O-O {[%clk 0:03:05]}
7. Bd3 {[%clk 0:03:03.4]} 7... Re8 {[%clk 0:03:05.9]} 8. c3 {[%clk 0:03:04.2]}
8... Nc6 {[%clk 0:03:06.9]} 9. Nc4 {[%clk 0:02:58]} 9... Bf8 {[%clk 0:03:05.5]}
10. O-O {[%clk 0:02:57.5]} 10... b5 {[%clk 0:03:00.1]} 11. Ncd2 {[%clk
0:02:55.1]} 11... a6 {[%clk 0:03:01.5]} 12. e4 {[%clk 0:02:56.6]} 12... d6
{[%clk 0:03:02.3]} 13. h3 {[%clk 0:02:56.3]} 13... e5 {[%clk 0:03:03.2]} 14. Re1
{[%clk 0:02:51]} 14... Nh5 {[%clk 0:02:59.6]} 15. Bh2 {[%clk 0:02:48.5]} 15...
Qf6 {[%clk 0:03:00.5]} 16. d5 {[%clk 0:02:40.6]} 16... Nb8 {[%clk 0:03:00.5]}
17. Nf1 {[%clk 0:02:41.2]} 17... Nd7 {[%clk 0:02:58]} 18. Ne3 {[%clk 0:02:40.2]}
18... Nf4 {[%clk 0:02:56.5]} 19. Bc2 {[%clk 0:02:40.8]} 19... Qg6 {[%clk
0:02:56.7]} 20. Kh1 {[%clk 0:02:36.8]} 20... Nf6 {[%clk 0:02:55.6]} 21. Nh4
{[%clk 0:02:34]} 21... Nxe4 {[%clk 0:02:26.1]} 22. Qf3 {[%clk 0:02:13.6]} 22...
Ng5 {[%clk 0:02:06.1]} 23. Qg3 {[%clk 0:01:43.6]} 23... Qf6 {[%clk 0:02:02.4]}
24. Nhf5 {[%clk 0:01:44.8]} 24... Nxd5 {[%clk 0:01:58.8]} 25. Ng4 {[%clk
0:01:38.8]} 25... Qd8 {[%clk 0:01:53.5]} 26. h4 {[%clk 0:01:37.7]} 26... Nf4
{[%clk 0:01:40.8]} 27. hxg5 {[%clk 0:01:27.5]} 27... Bxg2+ {[%clk 0:01:34.1]}
28. Kg1 {[%clk 0:01:26.3]} 28... Bb7 {[%clk 0:01:33.6]} 29. Nge3 {[%clk
0:01:09.4]} 29... Qxg5 {[%clk 0:01:27.6]} 30. Qxg5 {[%clk 0:01:08.3]} 30... Nh3+
{[%clk 0:01:28.6]} 31. Kf1 {[%clk 0:01:09.3]} 31... Nxg5 {[%clk 0:01:30.5]} 32.
Bg3 {[%clk 0:01:08.8]} 32... g6 {[%clk 0:01:30]} 33. Nh4 {[%clk 0:01:06.3]}
33... f5 {[%clk 0:01:23.5]} 34. f4 {[%clk 0:00:56]} 34... Ne4 {[%clk 0:01:20.9]}
35. Bxe4 {[%clk 0:00:52.2]} 35... Bxe4 {[%clk 0:01:22.8]} 36. Kf2 {[%clk
0:00:52.5]} 36... Bh6 {[%clk 0:01:13.3]} 37. Neg2 {[%clk 0:00:52.7]} 37... exf4
{[%clk 0:01:01.1]} 38. Bh2 {[%clk 0:00:39.4]} 38... g5 {[%clk 0:01:01.9]} 39.
Nf3 {[%clk 0:00:40.5]} 39... Bxf3 {[%clk 0:00:56.5]} 40. Kxf3 {[%clk 0:00:41]}
40... g4+ {[%clk 0:00:57.3]} 41. Kf2 {[%clk 0:00:42.4]} 41... g3+ {[%clk
0:00:59.2]} 42. Bxg3 {[%clk 0:00:43.7]} 42... fxg3+ {[%clk 0:01:01.1]} 43. Kxg3
{[%clk 0:00:45.6]} 43... Re5 {[%clk 0:00:59.9]} 44. Rf1 {[%clk 0:00:44.9]} 44...
Kf7 {[%clk 0:00:58.9]} 45. Kf3 {[%clk 0:00:45.3]} 45... Rg8 {[%clk 0:00:52]} 46.
Rh1 {[%clk 0:00:46.5]} 46... Rg6 {[%clk 0:00:50.9]} 47. Rh5 {[%clk 0:00:47.8]}
47... f4 {[%clk 0:00:47.5]} 48. Rh3 {[%clk 0:00:45.9]} 48... Reg5 {[%clk
0:00:42.8]} 49. Rh2 {[%clk 0:00:31.7]} 49... Rg3+ {[%clk 0:00:38.8]} 50. Kf2
{[%clk 0:00:33.3]} 50... Kg8 {[%clk 0:00:21.9]} 51. Nh4 {[%clk 0:00:33.7]} 51...
Rf6 {[%clk 0:00:20.8]} 52. Re1 {[%clk 0:00:33.5]} 52... Bg5 {[%clk 0:00:19.8]}
53. Nf3 {[%clk 0:00:34.2]} 53... h6 {[%clk 0:00:20.1]} 54. Re8+ {[%clk
0:00:35.2]} 54... Rf8 {[%clk 0:00:21.2]} 55. Re6 {[%clk 0:00:36]} 55... Kf7
{[%clk 0:00:21]} 56. Re4 {[%clk 0:00:32.9]} 56... Re8 {[%clk 0:00:20.8]} 57. Rd4
{[%clk 0:00:32.1]} 57... Re3 {[%clk 0:00:20.8]} 58. Nd2 {[%clk 0:00:33.7]} 58...
Ke6 {[%clk 0:00:18.9]} 59. Nf1 {[%clk 0:00:33.9]} 59... Rgf3+ {[%clk 0:00:17.2]}
60. Kg2 {[%clk 0:00:34.9]} 60... Rd3 {[%clk 0:00:17.9]} 61. Re4+ {[%clk
0:00:35.6]} 61... Kf5 {[%clk 0:00:18.7]} 62. Re2 {[%clk 0:00:35.8]} 62... Kg4
{[%clk 0:00:19.4]} 63. Rh1 {[%clk 0:00:35.4]} 63... Kf5 {[%clk 0:00:18.4]} 64.
Rh5 {[%clk 0:00:33.1]} 64... c5 {[%clk 0:00:18.2]} 65. Rh1 {[%clk 0:00:30.6]}
65... a5 {[%clk 0:00:18.9]} 66. Re8 {[%clk 0:00:32.1]} 66... b4 {[%clk
0:00:17.8]} 67. cxb4 {[%clk 0:00:32.8]} 67... axb4 {[%clk 0:00:19.7]} 68. Re2
{[%clk 0:00:33.3]} 68... c4 {[%clk 0:00:20.1]} 69. Nd2 {[%clk 0:00:34.4]} 69...
Rg3+ {[%clk 0:00:20.6]} 70. Kf2 {[%clk 0:00:35.8]} 70... d5 {[%clk 0:00:20.6]}
71. Nf1 {[%clk 0:00:23.2]} 71... Rgf3+ {[%clk 0:00:21.4]} 72. Ke1 {[%clk
0:00:24.9]} 72... c3 {[%clk 0:00:21.6]} 73. bxc3 {[%clk 0:00:25.5]} 73... bxc3
{[%clk 0:00:23.5]} 74. Rc2 {[%clk 0:00:27.2]} 74... d4 {[%clk 0:00:24.3]} 75. a4
{[%clk 0:00:28.3]} 75... Rfe3+ {[%clk 0:00:16.8]} 76. Nxe3+ {[%clk 0:00:29.2]}
76... dxe3 {[%clk 0:00:18.7]} 77. Ke2 {[%clk 0:00:27.8]} 77... Ke4 {[%clk
0:00:18.6]} 78. Rf1 {[%clk 0:00:24.7]} 78... Rd2+ {[%clk 0:00:18.6]} 79. Rxd2
{[%clk 0:00:25.7]} 79... cxd2 {[%clk 0:00:20.1]} 80. Rb1 {[%clk 0:00:24.7]}
80... f3+ {[%clk 0:00:21.1]} 81. Kd1 {[%clk 0:00:25.8]} 81... e2+ {[%clk
0:00:23]} 82. Kc2 {[%clk 0:00:27.2]} 82... e1=Q {[%clk 0:00:23.8]} 83. Rxe1+
{[%clk 0:00:28.2]} 83... dxe1=Q {[%clk 0:00:25.7]} 0-1